[Event "Early-Titled-Tuesday-Blitz-August-29-2023"]
[Site "Chess.com"]
[Date "2023.08.29"]
[Round "11"]
[White "kasun_bole"]
[Black "Rutricks"]
[Result "1-0"]
[WhiteElo "2382"]
[BlackElo "2613"]
[TimeControl "180+1"]
[EndTime "10:02:46 PDT"]
[Termination "kasun_bole won by resignation"]

1. d4 {[%clk 0:02:56.6]} 1... g6 {[%clk 0:03:00.9]} 2. c4 {[%clk 0:02:56.7]}
2... Bg7 {[%clk 0:03:01.5]} 3. Nc3 {[%clk 0:02:56.5]} 3... d6 {[%clk 0:03:02.2]}
4. e4 {[%clk 0:02:55.5]} 4... Nd7 {[%clk 0:03:02.8]} 5. Nf3 {[%clk 0:02:54.6]}
5... e5 {[%clk 0:03:03.3]} 6. Be2 {[%clk 0:02:54.6]} 6... Ngf6 {[%clk
0:03:03.5]} 7. Be3 {[%clk 0:02:54.5]} 7... O-O {[%clk 0:03:04.1]} 8. O-O {[%clk
0:02:54.3]} 8... Re8 {[%clk 0:03:04.5]} 9. d5 {[%clk 0:02:52.8]} 9... a5 {[%clk
0:03:05.1]} 10. a3 {[%clk 0:02:52.4]} 10... Nc5 {[%clk 0:03:05.4]} 11. Bxc5
{[%clk 0:02:46.4]} 11... dxc5 {[%clk 0:03:05.5]} 12. Nd2 {[%clk 0:02:46]} 12...
Bh6 {[%clk 0:03:03.3]} 13. Rb1 {[%clk 0:02:44.7]} 13... Bd7 {[%clk 0:03:01.1]}
14. b4 {[%clk 0:02:43.2]} 14... axb4 {[%clk 0:03:00.5]} 15. axb4 {[%clk
0:02:44.1]} 15... Qe7 {[%clk 0:03:00.8]} 16. bxc5 {[%clk 0:02:31.2]} 16... Reb8
{[%clk 0:03:01]} 17. Nb3 {[%clk 0:02:29.3]} 17... Ra3 {[%clk 0:03:00.7]} 18. Kh1
{[%clk 0:02:20.4]} 18... Qf8 {[%clk 0:02:54.7]} 19. Bf3 {[%clk 0:02:11.4]} 19...
Rba8 {[%clk 0:02:44.2]} 20. Nb5 {[%clk 0:02:11.2]} 20... Bxb5 {[%clk 0:02:35.7]}
21. cxb5 {[%clk 0:02:11.2]} 21... b6 {[%clk 0:02:36.6]} 22. c6 {[%clk
0:02:04.1]} 22... Ne8 {[%clk 0:02:35.9]} 23. Qc2 {[%clk 0:02:01.3]} 23... Qb4
{[%clk 0:02:35.3]} 24. Nc1 {[%clk 0:02:00.1]} 24... Rc3 {[%clk 0:02:17.7]} 25.
Rxb4 {[%clk 0:01:55.5]} 25... Rxc2 {[%clk 0:02:18.2]} 26. Nd3 {[%clk 0:01:55.5]}
26... f6 {[%clk 0:02:10.4]} 27. Rbb1 {[%clk 0:01:43.7]} 27... Ra3 {[%clk
0:02:10]} 28. Nb4 {[%clk 0:01:42.9]} 28... Rc4 {[%clk 0:02:08]} 29. Na6 {[%clk
0:01:43.1]} 29... Bf8 {[%clk 0:02:08.3]} 30. Ra1 {[%clk 0:01:39.9]} 30... Rb3
{[%clk 0:02:07.9]} 31. h3 {[%clk 0:01:36.4]} 31... Rc2 {[%clk 0:02:06.7]} 32.
Bd1 {[%clk 0:01:31.5]} 32... Rcb2 {[%clk 0:02:06.9]} 33. Bxb3 {[%clk 0:01:31.5]}
33... Rxb3 {[%clk 0:02:07.8]} 34. Rfb1 {[%clk 0:01:29.7]} 34... Rd3 {[%clk
0:02:08.2]} 35. Nb8 {[%clk 0:01:29.4]} 35... Bc5 {[%clk 0:02:05.6]} 36. f3
{[%clk 0:01:27.9]} 36... Kf7 {[%clk 0:02:04.1]} 37. Ra7 {[%clk 0:01:27.7]} 37...
f5 {[%clk 0:02:00.3]} 38. Na6 {[%clk 0:01:26.8]} 38... Bd6 {[%clk 0:02:00.1]}
39. Kg1 {[%clk 0:01:18.8]} 39... Rd2 {[%clk 0:01:59.5]} 40. Kf1 {[%clk
0:01:18.4]} 40... h5 {[%clk 0:01:58.3]} 41. Rb7 {[%clk 0:01:05.3]} 41... Ra2
{[%clk 0:01:52.5]} 42. Rb8 {[%clk 0:00:54.5]} 42... Ke7 {[%clk 0:01:50.1]} 43.
Ra8 {[%clk 0:00:50.9]} 43... Rd2 {[%clk 0:01:48.2]} 44. Ra1 {[%clk 0:00:49.2]}
44... Rb2 {[%clk 0:01:44.1]} 45. Nb8 {[%clk 0:00:48.6]} 45... Rxb5 {[%clk
0:01:38]} 46. R1a7 {[%clk 0:00:44.8]} 46... fxe4 {[%clk 0:01:33.8]} 47. fxe4
{[%clk 0:00:44.2]} 47... Rb4 {[%clk 0:01:34.5]} 48. Na6 {[%clk 0:00:43.1]} 48...
Rxe4 {[%clk 0:01:34.7]} 49. Rb8 {[%clk 0:00:42.6]} 49... Ra4 {[%clk 0:01:24.3]}
50. Rxe8+ {[%clk 0:00:39.4]} 50... Kxe8 {[%clk 0:01:21]} 51. Nxc7+ {[%clk
0:00:38.9]} 51... Bxc7 {[%clk 0:01:21.9]} 52. Rxa4 {[%clk 0:00:38.5]} 52... Ke7
{[%clk 0:01:22.8]} 53. Ra7 {[%clk 0:00:35.7]} 53... Kd6 {[%clk 0:01:23.4]} 54.
Ke2 {[%clk 0:00:35.3]} 54... b5 {[%clk 0:01:22.4]} 55. Kd3 {[%clk 0:00:35]}
55... e4+ {[%clk 0:01:20.9]} 56. Kxe4 {[%clk 0:00:35]} 56... b4 {[%clk
0:01:21.4]} 57. Rb7 {[%clk 0:00:34.7]} 1-0

[Event "Early-Titled-Tuesday-Blitz-August-29-2023"]
[Site "Chess.com"]
[Date "2023.08.29"]
[Round "11"]
[White "Mikhail_Golubev"]
[Black "JoshuaGK27"]
[Result "1-0"]
[WhiteElo "2554"]
[BlackElo "2401"]
[TimeControl "180+1"]
[EndTime "10:02:47 PDT"]
[Termination "Mikhail_Golubev won on time"]

1. e4 {[%clk 0:03:00.9]} 1... c5 {[%clk 0:02:59.8]} 2. Nf3 {[%clk 0:03:01]} 2...
d6 {[%clk 0:03:00.2]} 3. d4 {[%clk 0:03:00.9]} 3... cxd4 {[%clk 0:03:01.1]} 4.
Nxd4 {[%clk 0:03:01.2]} 4... Nf6 {[%clk 0:03:01.6]} 5. Nc3 {[%clk 0:03:01.5]}
5... a6 {[%clk 0:03:02]} 6. Bc4 {[%clk 0:03:00.7]} 6... e6 {[%clk 0:03:01.8]} 7.
O-O {[%clk 0:03:01.2]} 7... b5 {[%clk 0:03:01.6]} 8. Bb3 {[%clk 0:03:00.9]} 8...
Be7 {[%clk 0:03:02.1]} 9. Qf3 {[%clk 0:02:59.5]} 9... Qb6 {[%clk 0:03:01.9]} 10.
Be3 {[%clk 0:02:58]} 10... Qb7 {[%clk 0:03:01.2]} 11. Qg3 {[%clk 0:02:57.4]}
11... b4 {[%clk 0:02:47]} 12. Na4 {[%clk 0:02:56.2]} 12... Nbd7 {[%clk
0:02:46.5]} 13. f3 {[%clk 0:02:54]} 13... O-O {[%clk 0:02:38.9]} 14. Rac1 {[%clk
0:02:54]} 14... Kh8 {[%clk 0:02:37.3]} 15. c3 {[%clk 0:02:39.7]} 15... bxc3
{[%clk 0:02:32.5]} 16. Rxc3 {[%clk 0:02:35.6]} 16... Nc5 {[%clk 0:02:18]} 17.
Nxc5 {[%clk 0:02:30.6]} 17... dxc5 {[%clk 0:02:17.1]} 18. Ne2 {[%clk 0:02:30.1]}
18... Bd7 {[%clk 0:02:15.8]} 19. Bxc5 {[%clk 0:02:20.9]} 19... Bxc5+ {[%clk
0:02:15.3]} 20. Rxc5 {[%clk 0:02:21.8]} 20... Bb5 {[%clk 0:02:00.2]} 21. Re1
{[%clk 0:02:14.4]} 21... Bxe2 {[%clk 0:01:04.2]} 22. Rxe2 {[%clk 0:02:15.3]}
22... a5 {[%clk 0:01:03.8]} 23. Rc1 {[%clk 0:02:06.6]} 23... a4 {[%clk 0:01:03]}
24. Bc4 {[%clk 0:02:04.6]} 24... Rfc8 {[%clk 0:01:01.9]} 25. Qe1 {[%clk
0:01:56.3]} 25... Rab8 {[%clk 0:00:48.1]} 26. Rec2 {[%clk 0:01:53.4]} 26... Qb6+
{[%clk 0:00:28]} 27. Qf2 {[%clk 0:01:50.7]} 27... Qb4 {[%clk 0:00:28.5]} 28. Bf1
{[%clk 0:01:44.7]} 28... Rxc2 {[%clk 0:00:24.2]} 29. Rxc2 {[%clk 0:01:44.5]}
29... Nd7 {[%clk 0:00:22.1]} 30. a3 {[%clk 0:01:26.2]} 30... Qb7 {[%clk
0:00:14.3]} 31. Qd4 {[%clk 0:01:20.7]} 31... Nb6 {[%clk 0:00:06.3]} 32. Qd6
{[%clk 0:01:07.5]} 32... h6 {[%clk 0:00:06.3]} 33. Rc7 {[%clk 0:01:02.5]} 33...
Qa8 {[%clk 0:00:04.9]} 34. Rxf7 {[%clk 0:00:59.9]} 34... Qa5 {[%clk 0:00:02.1]}
35. Qxb8+ {[%clk 0:00:57.2]} 35... Kh7 {[%clk 0:00:01.5]} 36. Qc7 {[%clk
0:00:51.7]} 1-0

[Event "Early-Titled-Tuesday-Blitz-August-29-2023"]
[Site "Chess.com"]
[Date "2023.08.29"]
[Round "11"]
[White "BillieKimbah"]
[Black "WhiteKnight2612"]
[Result "1-0"]
[WhiteElo "3038"]
[BlackElo "2848"]
[TimeControl "180+1"]
[EndTime "10:02:50 PDT"]
[Termination "BillieKimbah won by resignation"]

1. d4 {[%clk 0:03:00.9]} 1... Nf6 {[%clk 0:02:58.2]} 2. Nf3 {[%clk 0:02:59.6]}
2... e6 {[%clk 0:02:58.5]} 3. Bg5 {[%clk 0:02:59.9]} 3... d5 {[%clk 0:02:57.8]}
4. e3 {[%clk 0:03:00.2]} 4... Be7 {[%clk 0:02:51.2]} 5. Nbd2 {[%clk 0:02:59.9]}
5... h6 {[%clk 0:02:51.4]} 6. Bf4 {[%clk 0:02:59.5]} 6... c5 {[%clk 0:02:51.6]}
7. c3 {[%clk 0:02:59.3]} 7... Nc6 {[%clk 0:02:52]} 8. Bd3 {[%clk 0:02:58.7]}
8... O-O {[%clk 0:02:51.1]} 9. g4 {[%clk 0:02:54]} 9... Nxg4 {[%clk 0:02:46]}
10. Rg1 {[%clk 0:02:52.9]} 10... f5 {[%clk 0:02:44.8]} 11. h3 {[%clk 0:02:51.7]}
11... cxd4 {[%clk 0:02:31.3]} 12. hxg4 {[%clk 0:02:48.8]} 12... fxg4 {[%clk
0:02:29.3]} 13. cxd4 {[%clk 0:02:34.6]} 13... gxf3 {[%clk 0:02:09.2]} 14. Bxh6
{[%clk 0:02:33.3]} 14... Rf7 {[%clk 0:02:07.7]} 15. Nxf3 {[%clk 0:02:22.8]}
15... Qa5+ {[%clk 0:01:56.2]} 16. Kf1 {[%clk 0:02:21.2]} 16... Bd7 {[%clk
0:01:56.4]} 17. Ng5 {[%clk 0:01:58.6]} 17... Bxg5 {[%clk 0:01:55.7]} 18. Rxg5
{[%clk 0:01:59.5]} 18... Qd8 {[%clk 0:01:28.7]} 19. Qh5 {[%clk 0:01:32]} 19...
Qf6 {[%clk 0:01:27]} 20. f4 {[%clk 0:01:31.9]} 20... Ne7 {[%clk 0:01:18.6]} 21.
Kf2 {[%clk 0:01:07.8]} 21... Kf8 {[%clk 0:01:17.4]} 22. Rg6 {[%clk 0:00:50.4]}
22... Nxg6 {[%clk 0:01:15.4]} 23. Bg5 {[%clk 0:00:50.7]} 23... Nxf4 {[%clk
0:00:51]} 24. Qh8+ {[%clk 0:00:50.1]} 24... Ke7 {[%clk 0:00:51.7]} 25. Bxf6+
{[%clk 0:00:50.2]} 25... gxf6 {[%clk 0:00:52.5]} 26. Qxa8 {[%clk 0:00:47.2]}
26... Nxd3+ {[%clk 0:00:52.9]} 27. Ke2 {[%clk 0:00:47.2]} 27... Nxb2 {[%clk
0:00:53.8]} 28. Qxa7 {[%clk 0:00:43.9]} 28... Bb5+ {[%clk 0:00:46.5]} 29. Kf3
{[%clk 0:00:44.1]} 29... Ba6 {[%clk 0:00:45.1]} 30. Rh1 {[%clk 0:00:28.2]} 30...
Nc4 {[%clk 0:00:37.4]} 31. Rh8 {[%clk 0:00:27.7]} 31... Nd6 {[%clk 0:00:27.3]}
32. Qb8 {[%clk 0:00:24.9]} 32... Kd7 {[%clk 0:00:25.5]} 33. Rd8+ {[%clk
0:00:24.4]} 1-0

[Event "Early-Titled-Tuesday-Blitz-August-29-2023"]
[Site "Chess.com"]
[Date "2023.08.29"]
[Round "11"]
[White "Preobrazhenska_D2011"]
[Black "Pax-Pramana"]
[Result "0-1"]
[WhiteElo "2333"]
[BlackElo "2508"]
[TimeControl "180+1"]
[EndTime "10:02:50 PDT"]
[Termination "Pax-Pramana won on time"]

1. e4 {[%clk 0:03:00]} 1... c5 {[%clk 0:02:59.6]} 2. Nf3 {[%clk 0:03:00.4]} 2...
e6 {[%clk 0:03:00.1]} 3. g3 {[%clk 0:02:59.8]} 3... d5 {[%clk 0:02:56.1]} 4.
exd5 {[%clk 0:03:00.5]} 4... exd5 {[%clk 0:02:57]} 5. Bg2 {[%clk 0:03:00.4]}
5... Nf6 {[%clk 0:02:54.8]} 6. O-O {[%clk 0:02:59.4]} 6... Be7 {[%clk
0:02:55.4]} 7. d4 {[%clk 0:02:59.5]} 7... O-O {[%clk 0:02:56]} 8. dxc5 {[%clk
0:02:59.4]} 8... Bxc5 {[%clk 0:02:55.5]} 9. a3 {[%clk 0:02:59.8]} 9... Bg4
{[%clk 0:02:31.4]} 10. b4 {[%clk 0:02:48]} 10... Bb6 {[%clk 0:02:31.9]} 11. Bb2
{[%clk 0:02:45.4]} 11... Nc6 {[%clk 0:02:27]} 12. h3 {[%clk 0:02:45.3]} 12...
Bh5 {[%clk 0:02:26.9]} 13. g4 {[%clk 0:02:40.2]} 13... Bg6 {[%clk 0:02:26.4]}
14. Nc3 {[%clk 0:02:36.6]} 14... Re8 {[%clk 0:02:17]} 15. Re1 {[%clk 0:01:55.1]}
15... Rc8 {[%clk 0:02:11.4]} 16. Rxe8+ {[%clk 0:01:52.2]} 16... Qxe8 {[%clk
0:02:12.3]} 17. Nxd5 {[%clk 0:01:30]} 17... Nxd5 {[%clk 0:02:10.3]} 18. Qxd5
{[%clk 0:01:30.9]} 18... Qe2 {[%clk 0:01:27.4]} 19. Rf1 {[%clk 0:01:25.1]} 19...
Be4 {[%clk 0:01:20.6]} 20. Qg5 {[%clk 0:01:00.2]} 20... f6 {[%clk 0:01:19.7]}
21. Bxf6 {[%clk 0:00:58.5]} 21... Rc7 {[%clk 0:01:20.5]} 22. Nh4 {[%clk
0:00:27.3]} 22... h6 {[%clk 0:01:14.7]} 23. Qh5 {[%clk 0:00:15]} 23... Bxg2
{[%clk 0:01:12.6]} 24. Nxg2 {[%clk 0:00:15.6]} 24... gxf6 {[%clk 0:01:11.7]} 25.
Qg6+ {[%clk 0:00:16.2]} 25... Rg7 {[%clk 0:01:10]} 26. Qxf6 {[%clk 0:00:16.2]}
26... Nd4 {[%clk 0:00:56.4]} 27. Rb1 {[%clk 0:00:05.4]} 27... Qxc2 {[%clk
0:00:46.2]} 28. Ra1 {[%clk 0:00:05]} 28... Qb2 {[%clk 0:00:44]} 29. Rf1 {[%clk
0:00:03.4]} 29... Ne2+ {[%clk 0:00:44.5]} 30. Kh1 {[%clk 0:00:03.5]} 30... Qxf6
{[%clk 0:00:45.4]} 0-1

[Event "Early-Titled-Tuesday-Blitz-August-29-2023"]
[Site "Chess.com"]
[Date "2023.08.29"]
[Round "11"]
[White "Rud_Makarian"]
[Black "averageFM"]
[Result "1-0"]
[WhiteElo "3008"]
[BlackElo "2558"]
[TimeControl "180+1"]
[EndTime "10:02:51 PDT"]
[Termination "Rud_Makarian won by resignation"]

1. d4 {[%clk 0:02:50.3]} 1... Nf6 {[%clk 0:02:56.3]} 2. c4 {[%clk 0:02:50.7]}
2... c5 {[%clk 0:02:54.7]} 3. dxc5 {[%clk 0:02:50.2]} 3... e6 {[%clk 0:02:46.2]}
4. g3 {[%clk 0:02:50.6]} 4... Bxc5 {[%clk 0:02:45.7]} 5. Bg2 {[%clk 0:02:51.1]}
5... O-O {[%clk 0:02:42.4]} 6. Nf3 {[%clk 0:02:50.6]} 6... d5 {[%clk 0:02:41.9]}
7. O-O {[%clk 0:02:49.7]} 7... Nc6 {[%clk 0:02:41.5]} 8. cxd5 {[%clk 0:02:48.4]}
8... Nxd5 {[%clk 0:02:42.4]} 9. a3 {[%clk 0:02:47.6]} 9... a5 {[%clk 0:02:33.3]}
10. e4 {[%clk 0:02:47.2]} 10... Nf6 {[%clk 0:02:32.2]} 11. Qc2 {[%clk
0:02:43.8]} 11... b6 {[%clk 0:02:25.6]} 12. e5 {[%clk 0:02:43.8]} 12... Nd5
{[%clk 0:02:16.7]} 13. Nc3 {[%clk 0:02:38.4]} 13... Nxc3 {[%clk 0:02:12.6]} 14.
bxc3 {[%clk 0:02:37.4]} 14... h6 {[%clk 0:01:57.6]} 15. Qe4 {[%clk 0:02:36.2]}
15... Bb7 {[%clk 0:01:56.3]} 16. Qg4 {[%clk 0:02:35.7]} 16... Kh8 {[%clk
0:01:52.1]} 17. Qh5 {[%clk 0:02:35.1]} 17... Qd3 {[%clk 0:01:50.7]} 18. Ng5
{[%clk 0:02:11.6]} 18... Qxc3 {[%clk 0:01:06.4]} 19. Bf4 {[%clk 0:01:59.7]}
19... Bxf2+ {[%clk 0:00:41.2]} 20. Kh1 {[%clk 0:01:58]} 20... Bd4 {[%clk
0:00:39.2]} 21. Ne4 {[%clk 0:01:40.5]} 21... Qxa1 {[%clk 0:00:26.9]} 22. Rxa1
{[%clk 0:01:39.4]} 22... Bxa1 {[%clk 0:00:26.7]} 23. Bxh6 {[%clk 0:01:40.1]}
23... Bxe5 {[%clk 0:00:26.7]} 24. Bd2+ {[%clk 0:00:32.8]} 24... Kg8 {[%clk
0:00:26.5]} 25. Ng5 {[%clk 0:00:33.5]} 25... Rfd8 {[%clk 0:00:26.2]} 26. Qxf7+
{[%clk 0:00:32.5]} 26... Kh8 {[%clk 0:00:26.1]} 27. Qh5+ {[%clk 0:00:31.5]}
27... Kg8 {[%clk 0:00:26]} 28. Qf7+ {[%clk 0:00:31.2]} 28... Kh8 {[%clk
0:00:26.1]} 29. Qg6 {[%clk 0:00:31.9]} 29... Kg8 {[%clk 0:00:24.3]} 30. Qxe6+
{[%clk 0:00:30.3]} 30... Kh8 {[%clk 0:00:22.2]} 31. Nf7+ {[%clk 0:00:28.7]}
31... Kh7 {[%clk 0:00:22.4]} 32. Be4+ {[%clk 0:00:27.9]} 1-0

[Event "Early-Titled-Tuesday-Blitz-August-29-2023"]
[Site "Chess.com"]
[Date "2023.08.29"]
[Round "11"]
[White "GM_shahin"]
[Black "Ariadna_Atreides"]
[Result "1-0"]
[WhiteElo "2706"]
[BlackElo "2224"]
[TimeControl "180+1"]
[EndTime "10:02:51 PDT"]
[Termination "GM_shahin won on time"]

1. d4 {[%clk 0:02:54.8]} 1... Nf6 {[%clk 0:02:58.2]} 2. Bg5 {[%clk 0:02:50.7]}
2... c5 {[%clk 0:02:55.1]} 3. Nc3 {[%clk 0:02:49.8]} 3... cxd4 {[%clk
0:02:51.5]} 4. Qxd4 {[%clk 0:02:50.7]} 4... Nc6 {[%clk 0:02:50.6]} 5. Qh4 {[%clk
0:02:45.9]} 5... Qa5 {[%clk 0:02:33.5]} 6. e4 {[%clk 0:02:44.4]} 6... Nd4 {[%clk
0:02:17.4]} 7. O-O-O {[%clk 0:02:42.7]} 7... e5 {[%clk 0:02:09.4]} 8. Bxf6
{[%clk 0:02:37.9]} 8... gxf6 {[%clk 0:02:08.7]} 9. Qxf6 {[%clk 0:02:38.8]} 9...
Rg8 {[%clk 0:02:07.5]} 10. Bc4 {[%clk 0:02:39.5]} 10... Ne6 {[%clk 0:01:59.4]}
11. Nf3 {[%clk 0:02:31.2]} 11... Rg6 {[%clk 0:01:55.9]} 12. Qxe5 {[%clk
0:02:28.5]} 12... Qxe5 {[%clk 0:01:45.2]} 13. Nxe5 {[%clk 0:02:29.4]} 13... Rxg2
{[%clk 0:01:44.8]} 14. f4 {[%clk 0:02:28.5]} 14... Bh6 {[%clk 0:01:41.4]} 15.
Kb1 {[%clk 0:02:20.9]} 15... Bxf4 {[%clk 0:01:39.6]} 16. Nxf7 {[%clk 0:02:16.8]}
16... Kxf7 {[%clk 0:01:36.2]} 17. Rdf1 {[%clk 0:02:17.3]} 17... Rg4 {[%clk
0:01:03.2]} 18. Ne2 {[%clk 0:02:11.8]} 18... Ke7 {[%clk 0:00:54.8]} 19. Bxe6
{[%clk 0:02:07.2]} 19... dxe6 {[%clk 0:00:54.6]} 20. Rxf4 {[%clk 0:02:04.7]}
20... e5 {[%clk 0:00:50.9]} 21. Rxg4 {[%clk 0:02:04.4]} 21... Bxg4 {[%clk
0:00:50.4]} 22. Nc3 {[%clk 0:02:05.3]} 22... Rf8 {[%clk 0:00:42.9]} 23. Nd5+
{[%clk 0:02:02.9]} 23... Ke6 {[%clk 0:00:41.3]} 24. Ne3 {[%clk 0:01:58.8]} 24...
Bf3 {[%clk 0:00:40.5]} 25. Rf1 {[%clk 0:01:58.9]} 25... Rf7 {[%clk 0:00:37.2]}
26. Nc4 {[%clk 0:01:56.3]} 26... b5 {[%clk 0:00:32.8]} 27. Nd2 {[%clk
0:01:55.8]} 27... Bg2 {[%clk 0:00:27.5]} 28. Rxf7 {[%clk 0:01:55.2]} 28... Kxf7
{[%clk 0:00:27.8]} 29. a4 {[%clk 0:01:39.8]} 29... a6 {[%clk 0:00:24.4]} 30.
axb5 {[%clk 0:01:37.5]} 30... axb5 {[%clk 0:00:24.6]} 31. Ka2 {[%clk 0:01:38.4]}
31... Kf6 {[%clk 0:00:10.2]} 32. Kb3 {[%clk 0:01:39.1]} 32... Kg5 {[%clk
0:00:10.4]} 33. Kc3 {[%clk 0:01:22.5]} 33... Kf4 {[%clk 0:00:10]} 34. Kd3 {[%clk
0:01:23.2]} 34... h5 {[%clk 0:00:05.7]} 35. b4 {[%clk 0:01:10.8]} 35... h4
{[%clk 0:00:04.4]} 36. c4 {[%clk 0:01:11.3]} 36... bxc4+ {[%clk 0:00:03.7]} 37.
Kxc4 {[%clk 0:01:12.2]} 37... Bxe4 {[%clk 0:00:02.1]} 38. Nxe4 {[%clk
0:01:13.1]} 38... Kxe4 {[%clk 0:00:02.5]} 39. b5 {[%clk 0:01:14]} 39... Kf3
{[%clk 0:00:02.2]} 40. b6 {[%clk 0:01:14.9]} 40... e4 {[%clk 0:00:02.7]} 41. b7
{[%clk 0:01:15.8]} 41... e3 {[%clk 0:00:03.2]} 42. b8=Q {[%clk 0:01:16.7]} 42...
e2 {[%clk 0:00:03.5]} 43. Qf8+ {[%clk 0:01:17]} 43... Kg2 {[%clk 0:00:03.5]} 44.
Qe7 {[%clk 0:01:15.8]} 44... Kf1 {[%clk 0:00:01.9]} 45. Qxh4 {[%clk 0:01:16.4]}
45... e1=Q {[%clk 0:00:01.5]} 46. Qxe1+ {[%clk 0:01:17.1]} 46... Kxe1 {[%clk
0:00:01.8]} 47. h4 {[%clk 0:01:18]} 1-0

[Event "Early-Titled-Tuesday-Blitz-August-29-2023"]
[Site "Chess.com"]
[Date "2023.08.29"]
[Round "11"]
[White "Lady_Nika"]
[Black "ChessicallyInclined"]
[Result "1-0"]
[WhiteElo "2484"]
[BlackElo "2660"]
[TimeControl "180+1"]
[EndTime "10:03:03 PDT"]
[Termination "Lady_Nika won by resignation"]

1. c4 {[%clk 0:03:00.9]} 1... c6 {[%clk 0:02:58.8]} 2. d4 {[%clk 0:02:59.9]}
2... d5 {[%clk 0:02:59.1]} 3. cxd5 {[%clk 0:02:59.9]} 3... cxd5 {[%clk 0:03:00]}
4. Nc3 {[%clk 0:03:00.7]} 4... Nf6 {[%clk 0:03:00]} 5. Nf3 {[%clk 0:02:59.6]}
5... Nc6 {[%clk 0:03:00.4]} 6. e3 {[%clk 0:02:57.8]} 6... a6 {[%clk 0:03:00.2]}
7. Bd3 {[%clk 0:02:57.8]} 7... Bg4 {[%clk 0:03:00.1]} 8. O-O {[%clk 0:02:57.2]}
8... Rc8 {[%clk 0:02:59]} 9. a3 {[%clk 0:02:57.2]} 9... e6 {[%clk 0:02:57.4]}
10. h3 {[%clk 0:02:57.2]} 10... Bh5 {[%clk 0:02:57.3]} 11. Be2 {[%clk
0:02:50.2]} 11... Bd6 {[%clk 0:02:55.6]} 12. Na4 {[%clk 0:02:38.7]} 12... Ne4
{[%clk 0:02:52.5]} 13. b4 {[%clk 0:02:37.1]} 13... b5 {[%clk 0:02:48.3]} 14. Nc5
{[%clk 0:02:36.7]} 14... Bxc5 {[%clk 0:02:48.8]} 15. bxc5 {[%clk 0:02:18.4]}
15... Nc3 {[%clk 0:02:46]} 16. Qd2 {[%clk 0:02:17.8]} 16... Nxe2+ {[%clk
0:02:45.4]} 17. Qxe2 {[%clk 0:02:17.7]} 17... Qf6 {[%clk 0:02:44]} 18. Bb2
{[%clk 0:02:12.2]} 18... O-O {[%clk 0:02:35.9]} 19. a4 {[%clk 0:01:57.8]} 19...
Rb8 {[%clk 0:02:30.2]} 20. axb5 {[%clk 0:01:54.7]} 20... axb5 {[%clk 0:02:31.1]}
21. Ra6 {[%clk 0:01:53.1]} 21... Rfc8 {[%clk 0:02:30.7]} 22. Rb1 {[%clk
0:01:41.9]} 22... Bg6 {[%clk 0:02:23.3]} 23. Rba1 {[%clk 0:01:34.6]} 23... h6
{[%clk 0:02:19.4]} 24. Rb6 {[%clk 0:01:32.2]} 24... b4 {[%clk 0:02:15.1]} 25.
Raa6 {[%clk 0:01:29.8]} 25... Rxb6 {[%clk 0:02:08.5]} 26. Rxb6 {[%clk
0:01:29.3]} 26... Qe7 {[%clk 0:02:01]} 27. Qa6 {[%clk 0:01:27.7]} 27... Qd7
{[%clk 0:01:54.2]} 28. Qb5 {[%clk 0:01:11.3]} 28... f6 {[%clk 0:01:49]} 29. Nd2
{[%clk 0:01:11.1]} 29... Be8 {[%clk 0:01:45]} 30. Qa6 {[%clk 0:00:59.5]} 30...
Rc7 {[%clk 0:01:40.4]} 31. Nb3 {[%clk 0:00:45.6]} 31... Kh7 {[%clk 0:01:34.4]}
32. Qd3+ {[%clk 0:00:41.3]} 32... Bg6 {[%clk 0:01:33.3]} 33. Qb5 {[%clk
0:00:41.3]} 33... Qc8 {[%clk 0:01:25.9]} 34. Na5 {[%clk 0:00:39.9]} 34... Nxa5
{[%clk 0:01:13.5]} 35. Qxa5 {[%clk 0:00:38.8]} 35... b3 {[%clk 0:01:13.9]} 36.
Rxb3 {[%clk 0:00:33.5]} 36... e5 {[%clk 0:01:02]} 37. dxe5 {[%clk 0:00:33]}
37... Rxc5 {[%clk 0:01:01.5]} 38. Qa7 {[%clk 0:00:32.9]} 38... Rc7 {[%clk
0:00:50.8]} 39. Qd4 {[%clk 0:00:32.1]} 39... fxe5 {[%clk 0:00:46.8]} 40. Qxd5
{[%clk 0:00:32]} 40... Bf7 {[%clk 0:00:41.3]} 41. Qe4+ {[%clk 0:00:31.4]} 41...
Kg8 {[%clk 0:00:40.1]} 42. Ra3 {[%clk 0:00:29.2]} 42... Re7 {[%clk 0:00:36.9]}
43. Ra8 {[%clk 0:00:28.1]} 1-0

[Event "Early-Titled-Tuesday-Blitz-August-29-2023"]
[Site "Chess.com"]
[Date "2023.08.29"]
[Round "11"]
[White "sergoy"]
[Black "Sl4werThanYou"]
[Result "1-0"]
[WhiteElo "2958"]
[BlackElo "2758"]
[TimeControl "180+1"]
[EndTime "10:03:05 PDT"]
[Termination "sergoy won by checkmate"]

1. d4 {[%clk 0:03:00]} 1... Nf6 {[%clk 0:02:43.9]} 2. c4 {[%clk 0:02:53.2]} 2...
e6 {[%clk 0:02:43.9]} 3. Nf3 {[%clk 0:02:53.8]} 3... d5 {[%clk 0:02:44.7]} 4.
Nc3 {[%clk 0:02:54.1]} 4... Ne4 {[%clk 0:02:30.9]} 5. g3 {[%clk 0:02:51.7]} 5...
Bb4 {[%clk 0:02:28.6]} 6. Qc2 {[%clk 0:02:51.3]} 6... f5 {[%clk 0:02:27.1]} 7.
Bg2 {[%clk 0:02:51.5]} 7... O-O {[%clk 0:02:27.5]} 8. O-O {[%clk 0:02:51.7]}
8... c6 {[%clk 0:02:26.3]} 9. Bf4 {[%clk 0:02:50.1]} 9... Bd7 {[%clk 0:02:24.8]}
10. h4 {[%clk 0:02:50]} 10... Be8 {[%clk 0:02:25]} 11. Ne5 {[%clk 0:02:49]}
11... Nd7 {[%clk 0:02:23.5]} 12. c5 {[%clk 0:02:27.8]} 12... Nxe5 {[%clk
0:02:14]} 13. Bxe5 {[%clk 0:02:28.7]} 13... Ba5 {[%clk 0:02:14.2]} 14. f3 {[%clk
0:02:00.6]} 14... Nf6 {[%clk 0:02:11.4]} 15. e4 {[%clk 0:01:46.8]} 15... fxe4
{[%clk 0:02:08.5]} 16. fxe4 {[%clk 0:01:45.6]} 16... Bg6 {[%clk 0:02:08.6]} 17.
Qb3 {[%clk 0:01:40.7]} 17... Bxc3 {[%clk 0:02:04.5]} 18. bxc3 {[%clk 0:01:38.7]}
18... Qd7 {[%clk 0:01:56.3]} 19. exd5 {[%clk 0:01:35.6]} 19... exd5 {[%clk
0:01:54.8]} 20. Rae1 {[%clk 0:01:24.6]} 20... Rae8 {[%clk 0:01:48.4]} 21. c4
{[%clk 0:01:21.2]} 21... dxc4 {[%clk 0:01:46]} 22. Qxc4+ {[%clk 0:01:22.1]}
22... Bf7 {[%clk 0:01:46.6]} 23. Qc2 {[%clk 0:01:22.3]} 23... Bd5 {[%clk
0:01:45.7]} 24. Bxd5+ {[%clk 0:01:15.6]} 24... Nxd5 {[%clk 0:01:43.2]} 25. Qe4
{[%clk 0:01:10.8]} 25... Qh3 {[%clk 0:01:32.8]} 26. Rxf8+ {[%clk 0:01:05]} 26...
Rxf8 {[%clk 0:01:32.4]} 27. Bd6 {[%clk 0:01:05.6]} 27... Nf6 {[%clk 0:01:19]}
28. Qe7 {[%clk 0:00:45.7]} 28... Re8 {[%clk 0:01:10.1]} 29. Qxe8+ {[%clk
0:00:34.4]} 29... Nxe8 {[%clk 0:01:11]} 30. Rxe8+ {[%clk 0:00:34.9]} 30... Kf7
{[%clk 0:01:10.8]} 31. Re7+ {[%clk 0:00:35.8]} 31... Kg6 {[%clk 0:01:10.7]} 32.
Be5 {[%clk 0:00:34.5]} 32... Qf5 {[%clk 0:01:00.1]} 33. Rxg7+ {[%clk 0:00:32.8]}
33... Kh6 {[%clk 0:01:00.6]} 34. Rg5 {[%clk 0:00:32.2]} 34... Qb1+ {[%clk
0:00:59.2]} 35. Kg2 {[%clk 0:00:32.5]} 35... Qe4+ {[%clk 0:00:57.7]} 36. Kf2
{[%clk 0:00:32.5]} 36... Qc2+ {[%clk 0:00:57.4]} 37. Kf3 {[%clk 0:00:32.9]}
37... Qd3+ {[%clk 0:00:56.7]} 38. Kf4 {[%clk 0:00:31.5]} 38... Qd2+ {[%clk
0:00:55.1]} 39. Kf5 {[%clk 0:00:30.5]} 39... Qc2+ {[%clk 0:00:48]} 40. Ke6
{[%clk 0:00:28.2]} 40... Qxa2+ {[%clk 0:00:47.9]} 41. Ke7 {[%clk 0:00:28.5]}
41... Qe2 {[%clk 0:00:45.9]} 42. Kd8 {[%clk 0:00:22]} 42... Qh5 {[%clk
0:00:32.6]} 43. Bg7# {[%clk 0:00:21.7]} 1-0